fUSD/lending_fUSD_20251115
["ID","MTS","AMOUNT","RATE_DAILY","PERIOD"]
[394050438,1763231251493,206.28082273,0.0004143,120]
[394050439,1763231252201,500.0,0.0004143,120]
[394050440,1763231252450,500.0,0.0004143,120]
[394050441,1763231252688,500.0,0.0004143,120]
[394050442,1763231252930,578.47668468,0.0004143,120]
[394050443,1763231257926,500.0,0.0004143,120]
[394050444,1763231258148,500.0,0.0004143,120]
[394050445,1763231258384,500.0,0.0004143,120]
[394050446,1763231258532,304.04269117,0.0004143,120]
[394050447,1763231258987,508.35710952,0.0004143,120]
[394050448,1763231261308,500.0,0.0004143,120]
[394050449,1763231261547,213.11864472,0.0004143,120]
[394050450,1763231261595,500.0,0.0004143,120]
[394050451,1763231261793,500.0,0.0004143,120]
[394050452,1763231261982,500.0,0.0004143,120]
[394050453,1763231262050,633.1710153,0.0004143,120]
[394050454,1763231262216,500.0,0.0004143,120]
[394050455,1763231262483,500.0,0.0004143,120]
[394050456,1763231262806,532.72554084,0.0004143,120]
[394050457,1763231263895,634.98305898,0.0004143,120]
[394050458,1763231264724,354.56405326,0.0004143,120]
[394050459,1763231265764,500.0,0.0004143,120]
[394050460,1763231265998,500.0,0.0004143,120]
[394050461,1763231266253,500.0,0.0004143,120]
[394050462,1763231266494,511.55583334,0.0004143,120]
[394050463,1763231268213,500.0,0.0004143,120]
[394050464,1763231268475,500.0,0.0004143,120]
[394050465,1763231268703,500.0,0.0004143,120]
[394050466,1763231268937,500.0,0.0004143,120]
[394050467,1763231269196,551.88108893,0.0004143,120]
[394050468,1763231270605,431.63228219,0.0004143,120]
[394050469,1763231271043,500.0,0.0004143,120]
[394050470,1763231271177,500.0,0.0004143,120]
[394050471,1763231271269,500.0,0.0004143,120]
[394050472,1763231271441,500.0,0.0004143,120]
[394050473,1763231271699,500.0,0.0004143,120]
[394050474,1763231271755,500.0,0.0004143,120]
[394050475,1763231271803,500.0,0.0004143,120]
[394050476,1763231271893,625.93171171,0.0004143,120]
[394050477,1763231272363,500.0,0.0004143,120]
[394050478,1763231272609,413.00348421,0.0004143,120]
[394050479,1763231274012,500.0,0.0004143,120]
[394050480,1763231274171,2852.84898793,0.0004143,30]
[394050481,1763231274430,500.0,0.0004143,120]
[394050482,1763231274671,419.25871431,0.0004143,120]
[394050483,1763231275521,500.0,0.0004143,120]
[394050484,1763231275767,500.0,0.0004143,120]
[394050485,1763231276019,500.0,0.0004143,120]
[394050486,1763231276664,500.0,0.0004143,120]
[394050487,1763231276917,265.66207177,0.0004143,120]
[394050488,1763231278891,500.0,0.0004143,120]
[394050489,1763231279143,500.0,0.0004143,120]
[394050490,1763231279359,500.0,0.0004143,120]
[394050491,1763231279604,500.0,0.0004143,120]
[394050492,1763231279843,508.93109229,0.0004143,120]
[394050493,1763231280592,232.85027872,0.0004143,120]
[394050494,1763231282454,374.11001958,0.0004143,120]
[394050495,1763231285638,500.0,0.0004143,120]
[394050496,1763231285913,500.0,0.0004143,120]
[394050497,1763231286156,500.0,0.0004143,120]
[394050498,1763231286417,554.08589198,0.0004143,120]
[394050499,1763231286803,500.0,0.0004143,120]
[394050500,1763231287070,500.0,0.0004143,120]
[394050501,1763231287302,500.0,0.0004143,120]
[394050502,1763231287547,500.0,0.0004143,120]
[394050503,1763231287772,570.98761197,0.0004143,120]
[394050508,1763231298379,500.0,0.0004143,120]
[394050509,1763231298617,500.0,0.0004143,120]
[394050510,1763231298679,500.0,0.0004143,120]
[394050511,1763231298869,500.0,0.0004143,120]
[394050512,1763231298927,500.0,0.0004143,120]
[394050513,1763231299126,605.97440756,0.0004143,120]
[394050514,1763231299180,511.52625372,0.0004143,120]
[394050515,1763231300409,500.0,0.0004143,120]
[394050516,1763231300876,237.51,0.0004143,120]
[394050517,1763231301139,189.89,0.00025034,120]
[394050518,1763231301245,2999.999999,0.0004143,30]
[394050519,1763231304472,300.95044158,0.0004143,120]
[394050520,1763231305079,2412.03741388,0.0004143,30]
[394050521,1763231305127,2849.30369087,0.0004143,30]
[394050522,1763231305785,2462.5164256,0.0004143,30]
[394050523,1763231305999,169.7596975,0.0004143,120]
[394050524,1763231307711,2605.31627947,0.0004143,30]
[394050525,1763231312058,500.0,0.0004143,120]
[394050526,1763231312328,500.0,0.0004143,120]
[394050527,1763231312598,485.19687479,0.0004143,120]
[394050528,1763231312898,500.0,0.0004143,120]
[394050529,1763231313142,500.0,0.0004143,120]
[394050530,1763231313382,500.0,0.0004143,120]
[394050531,1763231313632,530.32045882,0.0004143,120]
[394050532,1763231315601,503.7938403,0.0004143,120]
[394050533,1763231315825,500.0,0.0004143,120]
[394050534,1763231315946,500.0,0.0004143,120]
[394050535,1763231316062,500.0,0.0004143,120]
[394050536,1763231316190,500.0,0.0004143,120]
[394050537,1763231316331,250.65553398,0.0004143,120]
[394050538,1763231316467,500.0,0.0004143,120]
[394050539,1763231316725,500.0,0.0004143,120]
[394050540,1763231316973,500.0,0.0004143,120]
[394050541,1763231317023,500.0,0.0004143,120]
[394050542,1763231317212,626.48924988,0.0004143,120]
[394050543,1763231317255,500.0,0.0004143,120]
[394050544,1763231317516,500.0,0.0004143,120]
[394050545,1763231317760,500.0,0.0004143,120]
[394050546,1763231317996,500.0,0.0004143,120]
[394050547,1763231318262,394.46588194,0.0004143,120]
[394050548,1763231319176,500.0,0.0004143,120]
[394050549,1763231319409,500.0,0.0004143,120]
[394050550,1763231319656,500.0,0.0004143,120]
[394050551,1763231319904,527.77951559,0.0004143,120]
[394050552,1763231320208,7391.97847012,0.00015,3]
[394050553,1763231320233,100000.0,0.00015,3]
[394050554,1763231320259,100000.0,0.00015,3]
[394050555,1763231320289,84228.05269251,0.00015,3]
[394050556,1763231320318,74805.56581629,0.00015,3]
[394050557,1763231320866,2997.25241305,0.0004143,30]
[394050558,1763231320914,500.0,0.0004143,120]
[394050559,1763231321363,500.0,0.0004143,120]
[394050560,1763231321607,500.0,0.0004143,120]
[394050561,1763231321665,365.18058291,0.0004143,120]
[394050562,1763231321983,2347.97721028,0.0004143,30]
[394050564,1763231322851,3158.37176883,0.0004143,30]
[394050565,1763231323281,500.0,0.0004143,120]
[394050566,1763231323528,500.0,0.0004143,120]
[394050567,1763231323762,361.06827002,0.0004143,120]
[394050568,1763231323811,500.0,0.0004143,120]
[394050569,1763231324040,404.73843389,0.0004143,120]
[394050571,1763231325005,500.0,0.0004143,120]
[394050572,1763231325269,414.66921211,0.0004143,120]
[394050573,1763231325689,500.0,0.0004143,120]
[394050574,1763231325951,500.0,0.0004143,120]
[394050575,1763231326197,500.0,0.0004143,120]
[394050576,1763231326470,500.0,0.0004143,120]
[394050577,1763231326697,500.0,0.0004143,120]
[394050578,1763231326937,500.0,0.0004143,120]
[394050579,1763231327203,500.0,0.0004143,120]
[394050580,1763231327448,500.0,0.0004143,120]
[394050581,1763231327674,165.95843668,0.0004143,120]
[394050582,1763231331251,500.0,0.0004143,120]
[394050583,1763231331507,500.0,0.0004143,120]
[394050584,1763231331776,500.0,0.0004143,120]
[394050585,1763231332021,500.0,0.0004143,120]
[394050586,1763231332281,500.0,0.0004143,120]
[394050587,1763231332337,2494.26,0.0004143,120]
[394050588,1763231332590,2494.26,0.0004143,120]
[394050589,1763231332753,234.05614738,0.0004143,120]
[394050590,1763231332872,2494.26,0.0004143,120]
[394050591,1763231333128,2494.26,0.0004143,120]
[394050592,1763231333382,2494.26,0.0004143,120]
[394050593,1763231333636,2494.26,0.0004143,120]
[394050594,1763231333880,2494.26,0.0004143,120]
[394050595,1763231334137,2494.26,0.0004143,120]
[394050596,1763231334401,2494.26,0.0004143,120]
[394050597,1763231334641,2494.26,0.0004143,120]
[394050598,1763231334790,500.0,0.0004143,120]
[394050599,1763231334887,2494.26,0.0004143,120]
[394050600,1763231335029,500.0,0.0004143,120]
[394050601,1763231335127,2494.26,0.0004143,120]
[394050602,1763231335298,500.0,0.0004143,120]
[394050603,1763231335356,2494.26,0.0004143,120]
[394050604,1763231335887,500.0,0.0004143,120]
[394050605,1763231335964,2494.26,0.0004143,120]
[394050606,1763231336131,500.0,0.0004143,120]
[394050607,1763231336215,2494.26,0.0004143,120]
[394050608,1763231336496,2494.26,0.0004143,120]
[394050609,1763231336578,437.29744421,0.0004143,120]
[394050610,1763231336713,253.75381476,0.0004143,120]
[394050611,1763231336762,2494.26,0.0004143,120]
[394050612,1763231337007,2494.26,0.0004143,120]
[394050613,1763231337271,2494.26,0.0004143,120]
[394050614,1763231337522,2494.26,0.0004143,120]
[394050615,1763231337800,2494.26,0.0004143,120]
[394050616,1763231338063,2494.26,0.0004143,120]
[394050617,1763231338314,2494.26,0.0004143,120]
[394050618,1763231338421,500.0,0.0004143,120]
[394050619,1763231338554,2494.31733916,0.0004143,120]
[394050620,1763231338660,500.0,0.0004143,120]
[394050621,1763231338917,500.0,0.0004143,120]
[394050622,1763231339180,500.0,0.0004143,120]
[394050623,1763231339609,617.19248581,0.0004143,120]
[394050624,1763231345633,500.0,0.0004143,120]
[394050625,1763231345856,500.0,0.0004143,120]
[394050626,1763231346103,500.0,0.0004143,120]
[394050627,1763231346451,500.0,0.0004143,120]
[394050628,1763231346692,500.0,0.0004143,120]
[394050629,1763231346871,528.22529124,0.0004143,120]
[394050630,1763231347096,483.56705861,0.0004143,120]
[394050631,1763231347210,500.0,0.0004143,120]
[394050632,1763231347453,500.0,0.0004143,120]
[394050633,1763231347704,500.0,0.0004143,120]
[394050634,1763231347946,500.0,0.0004143,120]
[394050635,1763231348196,564.29269768,0.0004143,120]
[394050636,1763231350859,500.0,0.0004143,120]
[394050637,1763231351099,500.0,0.0004143,120]
[394050638,1763231351328,500.0,0.0004143,120]
[394050639,1763231351393,500.0,0.0004143,120]
[394050640,1763231351599,500.0,0.0004143,120]
[394050641,1763231351675,486.74824225,0.0004143,120]
[394050642,1763231352366,279.04607131,0.0004143,120]
[394050643,1763231353046,400.0,0.0004143,120]
[394050644,1763231354130,500.0,0.0004143,120]
[394050645,1763231354408,500.0,0.0004143,120]
[394050646,1763231354672,500.0,0.0004143,120]
[394050647,1763231355031,500.0,0.0004143,120]
[394050648,1763231355277,500.0,0.0004143,120]
[394050649,1763231355516,500.0,0.0004143,120]
[394050650,1763231356047,474.66131837,0.0004143,120]
[394050651,1763231356122,426.11331813,0.0004143,120]
[394050652,1763231358143,500.0,0.0004143,120]
[394050653,1763231358376,500.0,0.0004143,120]
[394050654,1763231358601,500.0,0.0004143,120]
[394050655,1763231358849,500.0,0.0004143,120]
[394050656,1763231359091,536.05583232,0.00041435,120]
[394050657,1763231363301,500.0,0.00041435,120]
[394050658,1763231363603,248.26234021,0.00041435,120]
[394050659,1763231364907,500.0,0.00041435,120]
[394050660,1763231365148,247.78794196,0.00041435,120]
[394050661,1763231365690,500.0,0.00041435,120]
[394050662,1763231366002,500.0,0.00041435,120]
[394050663,1763231366236,500.0,0.00041435,120]
[394050664,1763231366324,282.33620963,0.00041435,120]
[394050665,1763231366481,500.0,0.00041435,120]
[394050666,1763231366749,648.85984279,0.00041435,120]
[394050667,1763231367715,500.0,0.00041435,120]
[394050668,1763231367979,500.0,0.00041435,120]
[394050669,1763231368027,500.0,0.00041435,120]
[394050670,1763231368229,500.0,0.00041435,120]
[394050671,1763231368272,500.0,0.00041435,120]
[394050672,1763231368499,500.0,0.00041435,120]
[394050673,1763231368547,500.0,0.00041435,120]
[394050674,1763231368806,500.0,0.00041435,120]
[394050675,1763231368849,500.0,0.00041435,120]
[394050676,1763231369081,500.0,0.00041435,120]
[394050677,1763231369125,500.0,0.00041435,120]
[394050678,1763231369224,401.81919173,0.00041435,120]
[394050679,1763231369313,393.42697842,0.00041435,120]
[394050680,1763231369357,500.0,0.00041435,120]
[394050681,1763231369560,500.0,0.00041435,120]
[394050682,1763231369802,500.0,0.00041435,120]
[394050683,1763231370038,500.0,0.00041435,120]
[394050684,1763231370280,286.92055424,0.00041435,120]
[394050685,1763231371248,500.0,0.00041435,120]
[394050686,1763231371479,500.0,0.00041435,120]
[394050687,1763231371520,500.0,0.00041435,120]
[394050688,1763231371715,500.0,0.00041435,120]
[394050689,1763231371767,500.0,0.00041435,120]
[394050690,1763231371974,500.0,0.00041435,120]
[394050691,1763231372020,500.0,0.00041435,120]
[394050692,1763231372249,500.0,0.00041435,120]
[394050693,1763231372288,500.0,0.00041435,120]
[394050694,1763231372481,500.0,0.00041435,120]
[394050696,1763231372521,500.0,0.00041435,120]
[394050697,1763231372881,500.0,0.00041435,120]
[394050698,1763231372924,546.09484383,0.00041435,120]
[394050699,1763231372979,500.0,0.00041435,120]
[394050700,1763231373035,500.0,0.00041435,120]
[394050701,1763231373087,500.0,0.00041435,120]
[394050702,1763231373319,500.0,0.00041435,120]
[394050703,1763231373404,500.0,0.00041435,120]
[394050704,1763231373603,500.0,0.00041435,120]
[394050705,1763231373661,500.0,0.00041435,120]
[394050706,1763231373839,500.0,0.00041435,120]
[394050707,1763231373893,500.0,0.00041435,120]
[394050708,1763231374099,212.99768918,0.00041435,120]
[394050709,1763231374154,500.0,0.00041435,120]
[394050710,1763231374380,500.0,0.00041435,120]
[394050711,1763231374640,500.0,0.00041435,120]
[394050712,1763231374900,500.0,0.00041435,120]
[394050713,1763231375143,500.0,0.00041435,120]
[394050714,1763231375195,209.44872471,0.00041435,120]
[394050715,1763231375411,500.0,0.00041435,120]
[394050716,1763231375687,500.0,0.00041435,120]
[394050717,1763231375908,500.0,0.00041435,120]
[394050718,1763231376011,500.0,0.00041435,120]
[394050719,1763231376138,500.0,0.00041435,120]
[394050720,1763231376368,500.0,0.00041435,120]
[394050721,1763231376477,168.1964903,0.00041435,120]
[394050722,1763231376593,500.0,0.00041435,120]
[394050723,1763231376648,500.0,0.00041435,120]
[394050724,1763231376756,298.4614801,0.00041435,120]
[394050725,1763231376855,500.0,0.00041435,120]
[394050726,1763231376910,500.0,0.00041435,120]
[394050727,1763231377090,500.0,0.00041435,120]
[394050728,1763231377138,500.0,0.00041435,120]
[394050729,1763231377351,500.0,0.00041435,120]
[394050730,1763231377397,377.29988682,0.00041435,120]
[394050731,1763231377579,505.85592104,0.00041435,120]
[394050733,1763231382283,432.19231271,0.00041435,120]
[394050734,1763231384525,1944.8,0.00041435,120]
[394050735,1763231384780,1944.8,0.00041435,120]
[394050736,1763231385010,1944.8,0.00041435,120]
[394050737,1763231385275,500.0,0.00041435,120]
[394050738,1763231385340,1944.8,0.00041435,120]
[394050739,1763231385599,1944.8,0.00041435,120]
[394050740,1763231385646,500.0,0.00041435,120]
[394050741,1763231385838,1944.8,0.00041435,120]
[394050742,1763231385894,500.0,0.00041435,120]
[394050743,1763231385946,500.0,0.00041435,120]
[394050744,1763231386132,500.0,0.00041435,120]
[394050745,1763231386446,1944.8,0.00041435,120]
[394050746,1763231386494,500.0,0.00041435,120]
[394050747,1763231386547,500.0,0.00041435,120]
[394050748,1763231386599,1944.8,0.00041435,120]
[394050749,1763231386647,500.0,0.00041435,120]
[394050750,1763231386689,500.0,0.00041435,120]
[394050751,1763231386732,1944.8,0.00041435,120]
[394050752,1763231386777,500.0,0.00041435,120]
[394050753,1763231386917,1944.8,0.00041435,120]
[394050754,1763231386963,440.09275072,0.00041435,120]
[394050755,1763231387029,500.0,0.00041435,120]
[394050756,1763231387153,1944.8,0.00041435,120]
[394050757,1763231387284,500.0,0.00041435,120]
[394050758,1763231387407,1944.8,0.00041435,120]
[394050759,1763231387536,571.30644116,0.00041435,120]
[394050760,1763231387687,1944.8,0.00041435,120]
[394050761,1763231387942,1944.8,0.00041435,120]
[394050762,1763231388214,1944.8,0.00041435,120]
[394050763,1763231388467,1944.8,0.00041435,120]
[394050764,1763231388701,1944.8,0.00041435,120]
[394050765,1763231388962,1944.8,0.00041435,120]
[394050766,1763231389221,1944.8,0.00041435,120]
[394050767,1763231389462,1944.8,0.00041435,120]
[394050768,1763231389689,1944.8,0.00041435,120]
[394050769,1763231389925,1944.8,0.00041435,120]
[394050770,1763231390217,1944.8,0.00041435,120]
[394050771,1763231390454,1944.8831157,0.00041435,120]
[394050772,1763231390999,500.0,0.00041435,120]
[394050773,1763231391256,500.0,0.00041435,120]
[394050774,1763231391513,500.0,0.00041435,120]
[394050775,1763231391746,500.0,0.00041435,120]
[394050776,1763231392020,500.0,0.00041435,120]
[394050777,1763231392250,500.0,0.00041435,120]
[394050778,1763231392491,534.17527859,0.00041435,120]
[394050779,1763231395818,500.0,0.00041435,120]
[394050780,1763231396048,500.0,0.00041435,120]
[394050781,1763231396310,500.0,0.00041435,120]
[394050782,1763231396540,500.0,0.00041435,120]
[394050783,1763231396785,500.0,0.00041435,120]
[394050784,1763231397027,500.0,0.00041435,120]
[394050785,1763231397254,360.0,0.00041435,120]
[394050786,1763231399304,500.0,0.00041435,120]
[394050787,1763231399552,500.0,0.00041435,120]
[394050788,1763231399813,500.0,0.00041435,120]
[394050789,1763231400056,500.0,0.00041435,120]
[394050790,1763231400109,161.55914127,0.00041435,120]
[394050791,1763231400287,500.0,0.00041435,120]
[394050792,1763231400510,500.0,0.00041435,120]
[394050793,1763231400753,500.0,0.00041435,120]
[394050794,1763231401369,500.0,0.00041435,120]
[394050795,1763231401690,268.80438415,0.00041435,120]
[394050796,1763231403146,568.17162756,0.00041435,120]
[394050797,1763231403481,500.0,0.00041435,120]
[394050798,1763231403763,500.0,0.00041435,120]
[394050799,1763231404247,469.86934516,0.00041435,120]
[394050800,1763231404498,500.0,0.00041435,120]
[394050801,1763231404721,348.46997614,0.00041435,120]
[394050802,1763231406410,376.29841644,0.00041435,120]
[394050803,1763231407576,500.0,0.00041435,120]
[394050804,1763231407820,500.0,0.00041435,120]
[394050805,1763231408080,500.0,0.00041435,120]
[394050806,1763231408235,500.0,0.00041435,120]
[394050807,1763231408350,500.0,0.00041435,120]
[394050808,1763231408461,500.0,0.00041435,120]
[394050809,1763231408584,500.0,0.00041435,120]
[394050810,1763231408734,500.0,0.00041435,120]
[394050811,1763231408829,354.03091601,0.00041435,120]
[394050812,1763231408969,553.09086584,0.00041435,120]
[394050813,1763231409549,500.0,0.00041435,120]
[394050814,1763231409797,500.0,0.00041435,120]
[394050815,1763231410084,168.68500013,0.00041435,120]
[394050816,1763231411125,500.0,0.00041435,120]
[394050817,1763231411384,500.0,0.00041435,120]
[394050818,1763231411952,221.93146326,0.00041435,120]
[394050819,1763231411996,421.01388986,0.00041435,120]
[394050820,1763231413941,500.0,0.00041435,120]
[394050821,1763231414030,500.0,0.00041435,120]
[394050822,1763231414258,500.0,0.00041435,120]
[394050823,1763231414535,500.0,0.00041435,120]
[394050824,1763231414589,232.00511416,0.00041435,120]
[394050825,1763231414790,500.0,0.00041435,120]
[394050826,1763231415017,530.07458851,0.00041435,120]
[394050827,1763231417187,500.0,0.00041435,120]
[394050828,1763231417419,500.0,0.00041435,120]
[394050829,1763231417654,500.0,0.00041435,120]
[394050830,1763231418198,500.0,0.00041435,120]
[394050831,1763231418431,500.0,0.00041435,120]
[394050832,1763231418666,500.0,0.00041435,120]
[394050833,1763231418924,354.98,0.00041435,120]
[394050834,1763231420242,500.0,0.00041435,120]
[394050835,1763231420478,500.0,0.00041435,120]
[394050836,1763231420724,643.05919876,0.00041435,120]
[394050837,1763231422955,500.0,0.00041435,120]
[394050838,1763231423192,224.07872496,0.00041435,120]
[394050839,1763231430278,500.0,0.00041435,120]
[394050840,1763231430516,500.0,0.00041435,120]
[394050841,1763231430779,500.0,0.00041435,120]
[394050842,1763231430995,500.0,0.00041435,120]
[394050843,1763231431238,340.87657945,0.00041435,120]
[394050864,1763231431651,-934.887012,0.00016531,2]
[394050866,1763231431661,-2064.752988,0.00016615,2]
[394050867,1763231431677,-3485.597012,0.00016615,2]
[394050868,1763231431687,-189.89,0.0001669,2]
[394050869,1763231431697,-300.0,0.00016768,2]
[394050870,1763231431707,-500.0,0.000168,2]
[394050871,1763231431718,-300.0,0.00016899,2]
[394050872,1763231431728,-300.0,0.00016899,2]
[394050873,1763231431738,-503.36433124,0.00016899,2]
[394050874,1763231431751,-696.63566876,0.00016899,2]
[394050875,1763231431762,-300.0,0.00016899,2]
[394050876,1763231431773,-4773.17016045,0.000169,2]
[394050877,1763231431783,-2329.06610527,0.000169,2]
[394050878,1763231431794,-1000.0,0.00016905,2]
[394050879,1763231431810,-211.85,0.00016927,2]
[394050880,1763231431820,-500.0,0.00016973,2]
[394050881,1763231431830,-500.0,0.00016973,2]
[394050882,1763231431840,-500.0,0.00016973,2]
[394050883,1763231431850,-500.0,0.00016973,2]
[394050884,1763231431861,-500.0,0.00016973,2]
[394050885,1763231431875,-506.60742957,0.00016973,2]
[394050886,1763231431885,-500.0,0.00016973,2]
[394050887,1763231431895,-344.50359387,0.00016973,2]
[394050888,1763231431906,-550.0,0.00016999,2]
[394050889,1763231431916,-184.74657092,0.00016999,2]
[394050890,1763231431926,-500.0,0.00016999,2]
[394050891,1763231431936,-342.67542641,0.00016999,2]
[394050893,1763231431946,-286.26795464,0.00016999,2]
[394050895,1763231431956,-500.0,0.00016999,2]
[394050897,1763231431966,-196.14509876,0.00016999,2]
[394050899,1763231431976,-552.16510927,0.00016999,2]
[394050901,1763231431985,-500.0,0.00016999,2]
[394050903,1763231431995,-622.10157081,0.00016999,2]
[394050905,1763231432006,-500.81386685,0.00016999,2]
[394050907,1763231432016,-500.0,0.00016999,2]
[394050909,1763231432026,-500.0,0.00016999,2]
[394050911,1763231432036,-369.64213549,0.00016999,2]
[394050913,1763231432047,-500.0,0.00016999,2]
[394050916,1763231432061,-500.0,0.00016999,2]
[394050918,1763231432071,-500.0,0.00016999,2]
[394050920,1763231432081,-500.0,0.00016999,2]
[394050922,1763231432091,-500.0,0.00016999,2]
[394050924,1763231432101,-500.0,0.00016999,2]
[394050926,1763231432111,-500.0,0.00016999,2]
[394050928,1763231432122,-500.0,0.00016999,2]
[394050930,1763231432131,-500.0,0.00016999,2]
[394050932,1763231432141,-500.0,0.00016999,2]
[394050935,1763231432151,-500.0,0.00016999,2]
[394050937,1763231432162,-500.0,0.00016999,2]
[394050939,1763231432172,-500.0,0.00016999,2]
[394050941,1763231432182,-500.0,0.00016999,2]
[394050943,1763231432192,-500.0,0.00016999,2]
[394050945,1763231432201,-212.11493762,0.00016999,2]
[394050947,1763231432211,-500.0,0.00016999,2]
[394050949,1763231432221,-500.0,0.00016999,2]
[394050951,1763231432232,-500.0,0.00016999,2]
[394050954,1763231432242,-500.0,0.00016999,2]
[394050956,1763231432256,-500.0,0.00016999,2]
[394050958,1763231432266,-500.0,0.00016999,2]
[394050960,1763231432276,-350.0,0.00016999,2]
[394050962,1763231432285,-178023.47028672,0.00017,2]
[394050965,1763231432307,-298.45475,0.00017,2]
[394050968,1763231432319,-47058.00793168,0.00017,2]
[394050971,1763231432336,-1697.467,0.00017,2]
[394050973,1763231432348,-485368.11259101,0.00017,2]
[394050975,1763231432357,-160.0,0.00017,2]
[394050977,1763231432367,-321.1,0.00017047,2]
[394050979,1763231432377,-504.0,0.00017258,2]
[394050981,1763231432387,-1200.0,0.00017279,2]
[394050983,1763231432397,-377.58633016,0.0001728,2]
[394050985,1763231432407,-166.67,0.00017351,2]
[394050986,1763231432417,-150.0,0.00017507,2]
[394050987,1763231432426,-416.61,0.00017507,2]
[394050988,1763231432436,-150.0,0.00017507,2]
[394050989,1763231432448,-416.61,0.00017507,2]
[394050990,1763231432457,-1000.0,0.00017521,2]
[394050991,1763231432467,-275.95708203,0.00017521,2]
[394050992,1763231432478,-1000.0,0.00017521,2]
[394050993,1763231432488,-169.4,0.00017534,2]
[394050994,1763231432499,-150.0,0.000176,2]
[394050995,1763231432512,-319.9,0.000176,2]
[394050996,1763231432521,-301.05,0.000176,2]
[394050997,1763231432531,-178.68,0.000176,2]
[394050998,1763231432542,-302.36,0.000176,2]
[394050999,1763231432552,-301.16,0.000176,2]
[394051000,1763231432562,-556.99,0.000176,2]
[394051001,1763231432572,-500.0,0.00017699,2]
[394051002,1763231432584,-504.0,0.00017721,2]
[394051003,1763231432593,-2500.0,0.000178,2]
[394051004,1763231432604,-465.0,0.0001785,2]
[394051005,1763231432613,-200.0,0.00017856,2]
[394051006,1763231432624,-211.85,0.00017867,2]
[394051007,1763231432634,-500.0,0.00017873,2]
[394051008,1763231432643,-500.0,0.00017873,2]
[394051009,1763231432654,-615.21991021,0.00017873,2]
[394051010,1763231432664,-500.0,0.00017873,2]
[394051011,1763231432675,-500.0,0.00017873,2]
[394051012,1763231432685,-502.84416904,0.00017873,2]
[394051013,1763231432695,-200.0,0.00017873,2]
[394051014,1763231432705,-500.0,0.00017873,2]
[394051015,1763231432715,-1293.15956416,0.00017885,2]
[394051016,1763231432726,-158.924,0.00017896,2]